bitfinex/quotes_SOLUSD_20240726
["timestamp","ask_amount","ask_price","bid_price","bid_amount"]
[1722024713424,58.05,182.38,182.34,5.4842]
[1722024713826,13.05,182.39,182.36,5.4836]
[1722024714034,13.05,182.4,182.36,5.4836]
[1722024715228,0.7852114,182.44,182.37,13.7082]
[1722024715434,13.05,182.42,182.38,5.4827]
[1722024715638,13.05,182.41,182.38,5.4827]
[1722024716128,13.05,182.42,182.38,5.4827]
[1722024717717,13.05,182.4,182.36,5.4834]
[1722024718032,13.05,182.4,182.37,5.4832]
[1722024718231,13.05,182.41,182.37,5.4832]
[1722024718428,5.4816,182.43,182.38,5.483]
[1722024718742,13.05,182.41,182.39,5.4827]
[1722024719106,58.05,182.42,182.39,5.4827]
[1722024720305,13.05,182.42,182.4,5.4824]
[1722024721512,13.05,182.41,182.38,13.7069]
[1722024721817,13.05,182.4,182.38,13.7069]
[1722024722212,13.05,182.4,182.38,19.1898]
[1722024722433,13.05,182.4,182.38,13.7069]
[1722024724245,13.05,182.4,182.38,19.1898]
[1722024724418,13.05,182.41,182.38,19.1898]
[1722024724817,13.05,182.4,182.38,19.1898]
[1722024729943,13.05,182.4,182.38,13.7069]
[1722024730325,13.05,182.39,182.38,13.7069]
[1722024730641,13.05,182.39,182.36,5.4835]
[1722024730950,13.05,182.37,182.35,19.1933]
[1722024732051,13.05,182.38,182.36,5.4836]
[1722024732923,13.05,182.37,182.35,19.1934]
[1722024736550,58.05,182.36,182.32,19.1968]
[1722024736728,13.05,182.34,182.32,19.1968]
[1722024736930,13.05,182.34,182.33,5.4845]
[1722024737447,13.05,182.34,182.32,19.1967]
[1722024738242,13.05,182.34,182.33,5.4845]
[1722024742140,13.05,182.34,182.32,13.712]
[1722024742337,58.05,182.33,182.3,5.4853]
[1722024742572,13.05,182.32,182.29,19.1999]
[1722024742728,45.0,182.31,182.29,19.1999]
[1722024745053,45.0,182.31,182.29,13.7142]
[1722024745457,45.0,182.31,182.29,19.1999]
[1722024745754,58.05,182.31,182.29,19.1999]
[1722024745948,58.05,182.31,182.29,13.7142]
[1722024746146,13.05,182.3,182.29,13.7142]
[1722024746553,13.05,182.3,182.29,19.1999]
[1722024748867,58.05,182.31,182.29,19.1999]
[1722024749040,13.05,182.3,182.28,5.486]
[1722024749245,13.05,182.29,182.28,5.486]
[1722024752360,13.05,182.29,182.26,13.7164]
[1722024752864,13.05,182.28,182.26,13.7164]
[1722024754149,13.05,182.28,182.27,5.4862]
[1722024754761,13.05,182.28,182.26,19.2029]
[1722024755271,13.05,182.28,182.27,5.4863]
[1722024755457,58.05,182.28,182.27,5.4863]
[1722024757051,58.05,182.28,182.22,13.719]
[1722024757258,58.05,182.27,182.24,5.4869]
[1722024757582,58.05,182.27,182.25,5.4868]
[1722024758779,45.0,182.27,182.25,5.4868]
[1722024759176,58.05,182.27,182.25,5.4868]
[1722024759877,45.0,182.27,182.26,5.4866]
[1722024760280,13.05,182.29,182.26,5.4866]
[1722024760483,5.4852,182.31,182.26,5.4866]
[1722024760484,45.0,182.28,182.26,5.4866]
[1722024760649,45.0,182.29,182.26,5.4866]
[1722024761268,58.05,182.29,182.26,5.4866]
[1722024762070,13.05,182.27,182.17,1.09737965]
[1722024762399,13.05,182.27,182.2,5.4883]
[1722024762400,13.05,182.21,182.2,5.4883]
[1722024762697,13.05,182.21,182.18,5.489]
[1722024762873,45.0,182.2,182.18,5.489]
[1722024763280,45.0,182.2,182.19,5.4887]
[1722024763490,42.6215,182.2,182.18,5.489]
[1722024763693,13.05,182.21,182.18,5.489]
[1722024763873,13.05,182.21,182.19,5.4887]
[1722024764191,13.05,182.23,182.19,13.7213]
[1722024764571,13.05,182.23,182.21,5.4879]
[1722024765290,13.05,182.23,182.19,13.7213]
[1722024765791,45.0,182.22,182.21,5.4881]
[1722024766089,13.05,182.27,182.23,5.4872]
[1722024766902,44.6245,182.29,182.24,5.4871]
[1722024767192,16.2236,182.3,182.27,5.4863]
[1722024767382,16.2236,182.3,182.26,5.4866]
[1722024768086,16.2236,182.3,182.27,5.4862]
[1722024768289,16.2236,182.3,182.26,5.4866]
[1722024768487,34.7591,182.3,182.25,13.7167]
[1722024768682,29.2736,182.3,182.25,13.7167]
[1722024768884,13.05,182.29,182.25,13.7167]
[1722024769087,18.5357,182.29,182.25,19.2036]
[1722024769289,45.0,182.28,182.25,19.2036]
[1722024770901,45.0,182.29,182.25,19.2036]
[1722024772788,13.05,182.28,182.22,5.4876]
[1722024773000,50.4866,182.27,182.22,18.5376]
[1722024773189,45.0,182.27,182.23,5.4875]
[1722024773700,49.2636,182.3,182.23,26.7683]
[1722024773907,58.05,182.29,182.23,26.7683]
[1722024774807,63.5358,182.29,182.23,13.7183]
[1722024775609,18.5362,182.28,182.23,19.2058]
[1722024775783,45.0,182.27,182.23,19.2058]
[1722024777487,5.4901,182.15,182.1,13.05]
[1722024777709,5.4897,182.16,182.07,52.2]
[1722024778008,27.4398,182.22,182.07,52.2]
[1722024778009,5.4872,182.25,182.15,13.05]
[1722024778203,5.4878,182.22,182.15,6.5488]
[1722024778507,13.05,182.18,182.15,6.5488]
[1722024778709,5.4881,182.21,182.13,13.05]
[1722024778886,21.86271364,182.3,182.2,5.4884]
[1722024778887,16.1558,182.3,182.2,5.4884]
[1722024779207,13.05,182.23,182.17,13.05]
[1722024779384,13.05,182.22,182.16,13.05]
[1722024779705,13.05,182.23,182.17,13.05]
[1722024779884,33.04,182.25,182.1,7.64659778]
[1722024779885,13.05,182.22,182.16,13.05]
[1722024780211,13.05,182.2,182.14,26.7751]
[1722024780402,13.05,182.19,182.14,13.7251]
[1722024780707,13.05,182.19,182.14,19.2153]
[1722024781205,13.05,182.17,182.11,13.05]
[1722024781397,58.05,182.18,182.12,26.7769]
[1722024781600,13.05,182.17,182.14,5.49]
[1722024781990,13.05,182.17,182.12,13.7269]
[1722024782814,13.05,182.17,182.13,5.4905]
[1722024783610,13.05,182.17,182.12,19.2177]
[1722024784188,13.05,182.17,182.13,5.4905]
[1722024784404,13.05,182.17,182.12,13.7269]
[1722024784788,50.489,182.18,182.12,19.2177]
[1722024784985,13.05,182.17,182.12,19.2177]
[1722024786516,18.5394,182.17,182.12,19.2177]
[1722024786892,13.05,182.16,182.12,19.2177]
[1722024788018,18.5394,182.17,182.12,19.2177]
[1722024788320,18.5397,182.16,182.12,13.7269]
[1722024788818,5.4893,182.17,182.12,19.2177]
[1722024789020,13.05,182.16,182.12,19.2177]
[1722024793210,13.05,182.13,182.08,13.7296]
[1722024793927,13.05,182.12,182.08,13.7296]
[1722024794100,63.5411,182.11,182.06,5.4926]
[1722024795000,58.05,182.11,182.07,5.4923]
[1722024795700,58.05,182.11,182.08,5.4918]
[1722024797305,45.0,182.11,182.08,5.4918]
[1722024797519,13.05,182.1,182.07,19.2227]
[1722024797817,13.05,182.1,182.05,5.4927]
[1722024797818,13.05,182.08,182.05,5.4927]
[1722024798024,45.0,182.09,182.03,5.4933]
[1722024798025,13.05,182.06,182.03,5.4933]
[1722024798216,45.0,182.05,182.03,5.4933]
[1722024798523,13.05,182.04,182.02,5.4938]
[1722024798707,13.05,182.03,181.97,77.3236]
[1722024798898,45.0,182.02,182.0,5.4944]
[1722024799325,58.05,182.02,181.99,13.7364]
[1722024799621,58.05,182.02,181.99,19.2311]
[1722024800412,13.05,182.01,181.99,13.7364]
[1722024800609,58.05,182.0,181.96,5.4954]
[1722024800811,58.05,181.99,181.97,5.4952]
[1722024801115,13.05,181.99,181.97,5.4952]
[1722024801300,45.0,181.98,181.97,5.4952]
[1722024810209,18.5435,182.04,181.99,5.4945]
[1722024810827,13.05,182.03,181.99,5.4945]
[1722024811228,18.5436,182.03,181.99,5.4945]
[1722024811611,45.0,182.02,181.99,5.4945]
[1722024811808,63.5439,182.02,181.97,19.2331]
[1722024815539,18.5442,182.01,181.97,19.2331]
[1722024815714,58.05,182.0,181.97,13.738]
[1722024815914,58.05,181.99,181.97,13.738]
[1722024816635,58.05,181.99,181.97,19.2333]
[1722024817732,58.05,181.99,181.96,5.4956]
[1722024818329,13.05,182.03,181.97,13.05]
[1722024819044,13.05,182.03,182.0,5.4944]
[1722024819821,45.0,182.02,182.0,5.4944]
[1722024820747,45.0,182.02,181.99,19.2316]
[1722024821859,58.05,182.02,181.99,19.2316]
[1722024822135,45.0,182.02,182.0,5.4944]
[1722024822528,58.05,182.02,181.99,19.2316]
[1722024823224,13.05,182.01,181.97,5.4951]
[1722024823429,58.05,182.0,181.97,5.4951]
[1722024823626,13.05,182.01,181.97,5.4951]
[1722024823817,45.0,182.0,181.97,5.4951]
[1722024826839,58.05,182.0,181.97,5.4951]
[1722024827143,13.05,181.99,181.97,5.4951]
[1722024827445,45.0,181.98,181.96,19.2345]
[1722024827645,45.0,181.98,181.96,13.7389]
[1722024828025,45.0,181.98,181.96,19.2345]
[1722024828233,58.05,181.98,181.96,19.2345]
[1722024828448,51.5827,182.06,182.01,5.4941]
[1722024828758,51.5827,182.06,181.97,28.6364]
[1722024828759,13.05,182.04,181.97,15.5864]
[1722024828933,13.05,182.04,181.98,13.05]
[1722024829651,13.05,182.04,181.97,15.5864]
[1722024829652,46.09,182.05,181.99,13.05]
[1722024829858,58.05,182.04,181.98,13.05]
[1722024830157,58.05,182.04,182.0,5.4944]
[1722024830919,63.5433,182.04,182.0,5.4944]
[1722024831852,13.05,182.03,181.99,5.4947]
[1722024832057,45.0,182.02,181.99,5.4947]
[1722024833731,58.05,182.02,181.99,5.4947]
[1722024834865,45.0,182.02,181.99,5.4947]
[1722024835439,45.0,182.03,182.0,5.4944]
[1722024835665,58.05,182.03,182.0,5.4944]
[1722024838461,45.0,182.03,182.0,5.4944]
[1722024838659,58.05,182.03,182.0,5.4944]
[1722024840463,13.05,182.04,182.02,5.4938]
[1722024840852,13.05,182.05,182.01,5.4941]
[1722024841652,47.13095321,182.07,182.02,5.4938]
[1722024841852,58.05,182.06,182.02,5.4938]
[1722024842652,63.5427,182.06,182.02,5.4938]
[1722024844865,13.05,182.05,182.01,5.4941]
[1722024845175,50.4927,182.06,182.0,13.7358]
[1722024845176,58.05,182.04,182.0,13.7358]
[1722024845470,45.0,182.03,182.0,19.2302]
[1722024847466,58.05,182.03,181.97,29.3247]
[1722024847659,63.5436,182.03,181.97,29.3247]
[1722024847867,63.5436,182.03,181.99,5.4947]
[1722024848380,58.05,182.03,181.99,5.4947]
[1722024848562,58.05,182.03,182.0,5.4944]
[1722024849469,58.05,182.03,181.99,5.4947]
[1722024849981,45.0,182.03,181.99,5.4947]
[1722024850684,45.0,182.03,182.0,5.4944]
[1722024851384,45.0,182.03,181.99,5.4947]
[1722024851592,45.0,182.03,181.99,18.5447]
[1722024851885,45.0,182.03,181.99,13.7364]
[1722024852056,58.05,182.04,181.99,13.7364]
[1722024852258,45.0,182.04,182.0,5.4944]
[1722024852460,58.05,182.04,182.0,5.4944]
[1722024852669,45.0,182.04,182.0,5.4944]
[1722024853684,63.5433,182.04,182.0,5.4944]
[1722024854286,13.05,182.02,181.99,13.7364]
[1722024854490,45.0,182.01,181.99,13.7364]
[1722024854660,13.05,182.0,181.96,5.4954]
[1722024854867,20.0,182.04,181.95,13.7394]
[1722024854868,58.05,181.99,181.95,13.7394]
[1722024855068,45.0,181.99,181.96,5.4956]
[1722024855284,13.05,181.99,181.96,5.4956]
[1722024855482,45.0,181.98,181.96,5.4956]
[1722024855781,33.02,182.03,181.96,13.05]
[1722024855970,27.4411,182.21,181.98,13.05]
[1722024855971,13.05,182.04,181.98,13.05]
[1722024856180,33.02,182.06,182.02,5.4938]
[1722024856364,13.05,182.04,182.02,5.4938]
[1722024856778,13.05,182.04,182.01,5.4941]
[1722024857378,13.05,182.04,182.0,19.2305]
[1722024857567,45.0,182.03,182.0,19.2305]
[1722024857772,58.05,182.03,182.0,19.2305]
[1722024858191,45.0,182.03,182.0,19.2305]
[1722024858486,50.4935,182.04,182.0,13.7361]
[1722024858694,13.05,182.02,181.97,13.7384]
[1722024858997,45.0,182.01,181.99,5.4947]
[1722024859366,45.0,182.02,181.99,5.4947]
[1722024859568,58.05,182.02,181.99,5.4947]
[1722024859864,45.0,182.02,181.99,5.4947]
[1722024860294,8.61924895,182.05,181.99,26.7864]
[1722024860473,8.61924895,182.05,181.99,13.05]
[1722024860474,21.66924895,182.05,181.99,13.05]
[1722024860664,21.66924895,182.05,182.02,5.4938]
[1722024860665,8.61924895,182.05,182.02,5.4938]
[1722024861897,45.0,182.04,182.02,5.4938]
[1722024862990,45.0,182.04,182.01,19.2289]
[1722024863489,45.0,182.04,182.02,5.4937]
[1722024864586,45.0,182.04,182.01,13.7348]
[1722024865580,45.0,182.04,182.01,26.7848]
[1722024865771,13.05,182.07,182.01,26.7848]
[1722024865976,45.0,182.06,182.01,26.7848]
[1722024866694,45.0,182.06,182.02,5.4938]
[1722024869375,45.0,182.06,182.03,5.4935]
[1722024873706,58.05,182.06,182.03,5.4935]
[1722024873922,13.05,182.05,182.01,13.7348]
[1722024874218,13.05,182.05,182.01,19.2289]
[1722024874382,13.05,182.03,182.01,13.7348]
[1722024874784,45.0,182.02,182.01,13.7348]
[1722024875094,58.05,182.02,181.99,5.4947]
[1722024876913,58.05,182.02,182.0,5.4945]
[1722024879410,45.0,182.02,182.01,5.4942]
[1722024882313,45.0,182.02,182.0,19.2299]
[1722024882513,58.05,182.02,182.0,13.7355]
[1722024883107,13.05,182.01,181.97,19.2335]
[1722024883312,58.05,182.0,181.98,5.495]
[1722024883512,58.05,182.0,181.97,19.2337]
[1722024885427,13.05,181.98,181.93,13.7411]
[1722024885616,58.05,181.97,181.95,5.4957]
[1722024885823,45.0,181.96,181.95,5.4957]
[1722024887341,45.0,181.96,181.94,5.4962]
[1722024887525,13.05,181.95,181.93,19.2374]
[1722024887728,45.0,181.94,181.93,19.2374]
[1722024892324,45.0,181.94,181.89,21.7368]
[1722024892325,58.05,181.94,181.89,13.7441]
[1722024892642,45.0,181.94,181.89,13.7441]
[1722024892943,45.0,181.94,181.89,26.7941]
[1722024893240,5.4971,181.92,181.87,5.4981]
[1722024893424,58.05,181.91,181.88,5.4978]
[1722024893626,45.0,181.91,181.81,43.164]
[1722024893841,58.05,181.91,181.84,13.7482]
[1722024894023,58.05,181.91,181.85,13.05]
[1722024894225,45.0,181.91,181.86,13.05]
[1722024894427,45.0,181.91,181.86,26.7961]
[1722024894642,45.0,181.91,181.86,13.7461]
[1722024894844,45.0,181.91,181.86,26.7961]
[1722024895145,45.0,181.91,181.88,26.7946]
[1722024895325,45.0,181.91,181.9,5.4975]
[1722024896950,45.0,181.91,181.9,4.9975]
[1722024897155,13.05,181.96,181.91,13.7426]
[1722024897747,13.05,181.96,181.94,5.4962]
[1722024897938,13.05,181.96,181.92,5.4966]
[1722024899363,13.05,181.96,181.92,4.4966]
[1722024899733,13.05,181.96,181.91,13.7426]
[1722024900053,45.0,181.95,181.93,5.4965]
[1722024900279,45.0,181.96,181.94,5.4961]
[1722024900555,45.0,181.97,181.95,5.4959]
[1722024900863,58.05,181.97,181.91,26.7929]
[1722024901052,13.05,181.96,181.91,13.7429]
[1722024901257,45.0,181.95,181.91,26.7929]
[1722024901554,45.0,181.95,181.91,32.2901]
[1722024902559,45.0,181.95,181.91,18.7401]
[1722024903337,58.05,181.95,181.91,18.7401]
[1722024903536,58.05,181.95,181.92,5.4969]
[1722024903863,45.0,181.95,181.92,5.4969]
[1722024904035,45.0,181.95,181.91,18.74]
[1722024905145,13.05,181.92,181.88,13.7451]
[1722024905347,13.05,181.92,181.82,33.767]
[1722024905348,13.05,181.89,181.83,13.05]
[1722024905564,45.0,181.88,181.84,5.4993]
[1722024905745,45.0,181.88,181.84,13.7483]
[1722024905945,45.0,181.88,181.83,5.4995]
[1722024906156,5.4989,181.86,181.81,19.2506]
[1722024906471,45.0,181.85,181.82,5.4997]
[1722024906870,58.05,181.86,181.82,5.4997]
[1722024907172,45.0,181.86,181.82,18.5497]
[1722024907346,50.4987,181.86,181.82,5.4999]
[1722024907746,45.0,181.86,181.81,13.05]
[1722024907954,45.0,181.86,181.83,5.4993]
[1722024908153,45.0,181.86,181.82,13.05]
[1722024908351,63.5484,181.87,181.82,19.249]
[1722024908552,63.5484,181.87,181.82,13.7492]
[1722024908553,5.4988,181.86,181.82,13.7492]
[1722024908751,5.5002,181.81,181.8,0.7852114]
[1722024909050,18.5498,181.83,181.8,0.2852114]
[1722024909249,45.0,181.82,181.8,0.2852114]
[1722024909863,45.0,181.83,181.8,0.2852114]
[1722024910063,45.0,181.83,181.78,16.8363114]
[1722024910372,45.0,181.83,181.79,5.5008]
[1722024911071,78.05,181.83,181.77,19.2546]
[1722024911240,13.05,181.79,181.73,13.7563]
[1722024911568,45.0,181.78,181.75,5.5018]
[1722024911776,45.0,181.78,181.74,18.5523]
[1722024911951,45.0,181.79,181.75,5.502]
[1722024912153,45.0,181.79,181.75,18.552]
[1722024912354,45.0,181.79,181.76,4.5017]
[1722024912557,45.0,181.8,181.76,4.5017]
[1722024912781,45.0,181.8,181.75,13.05]
[1722024913771,45.0,181.8,181.76,13.05]
[1722024913973,18.55,181.82,181.76,13.05]
[1722024913974,45.0,181.81,181.76,13.05]
[1722024914479,45.0,181.81,181.77,26.803]
[1722024914779,45.0,181.82,181.78,13.05]
[1722024915271,45.0,181.83,181.78,13.05]
[1722024915478,5.4999,181.82,181.78,13.05]
[1722024915678,45.0,181.81,181.78,13.05]
[1722024915881,45.0,181.81,181.78,5.5011]
[1722024916258,45.0,181.82,181.78,5.5011]
[1722024916578,45.0,181.82,181.79,5.5008]
[1722024917165,45.0,181.82,181.78,5.5011]
[1722024917371,50.4999,181.82,181.77,32.3044]
[1722024917572,13.05,181.8,181.72,13.7568]
[1722024917760,50.5009,181.79,181.74,13.05]
[1722024917961,5.5011,181.78,181.73,18.5523]
[1722024918169,45.0,181.77,181.73,18.5523]
[1722024918376,45.0,181.77,181.74,5.5022]
[1722024918579,45.0,181.78,181.76,5.5017]
[1722024918884,45.0,181.78,181.75,5.502]
[1722024919771,5.5024,181.74,181.67,13.05]
[1722024919988,18.552,181.76,181.7,13.05]
[1722024920163,18.552,181.76,181.62,1.88597791]
[1722024920164,45.0,181.76,181.62,1.88597791]
[1722024920484,63.5518,181.76,181.7,13.05]
[1722024920664,63.5518,181.76,181.71,5.5032]
[1722024921362,63.5518,181.76,181.7,18.5535]
[1722024921890,5.5021,181.75,181.7,18.5535]
[1722024922183,45.0,181.74,181.68,13.7597]
[1722024922387,58.05,181.74,181.68,26.8097]
[1722024922592,50.5026,181.74,181.69,13.05]
[1722024923280,50.5026,181.74,181.69,18.5538]
[1722024923476,20.0,181.69,181.62,0.7852114]
[1722024923678,5.5042,181.68,181.62,6.2910114]
[1722024923986,45.0,181.67,181.66,18.5547]
[1722024924177,39.5777,181.77,181.66,18.5547]
[1722024924178,20.0,181.79,181.66,13.05]
[1722024924385,15.8446,181.81,181.73,13.05]
[1722024924386,5.5015,181.77,181.73,13.05]
[1722024924688,15.8446,181.81,181.73,13.05]
[1722024924859,13.05,181.8,181.74,13.05]
[1722024925054,18.5511,181.79,181.73,32.3084]
[1722024925488,18.5511,181.79,181.74,5.5023]
[1722024925783,5.5011,181.78,181.73,26.806]
[1722024926284,8.63226819,181.77,181.73,19.2586]
[1722024926487,8.63226819,181.77,181.73,13.756]
[1722024926689,14.13376819,181.77,181.73,26.806]
[1722024926863,14.13376819,181.77,181.72,18.5529]
[1722024927062,14.13376819,181.77,181.72,13.05]
[1722024927887,45.0,181.76,181.72,13.05]
[1722024928696,5.5008,181.8,181.75,13.05]
[1722024928999,8.63161847,181.78,181.75,18.552]
[1722024929295,8.63161847,181.78,181.76,5.5017]
[1722024929505,20.0,181.82,181.77,5.5014]
[1722024929792,8.63098115,181.82,181.79,18.5507]
[1722024929994,8.63098115,181.82,181.8,18.5503]
[1722024930186,26.5267,181.87,181.8,13.05]
[1722024930372,14.12827011,181.85,181.8,13.05]
[1722024930575,5.4994,181.84,181.79,13.05]
[1722024930791,41.64927011,181.85,181.78,32.3037]
[1722024930980,5.4996,181.83,181.79,13.05]
[1722024931288,5.4999,181.82,181.79,13.05]
[1722024931794,5.4996,181.83,181.79,13.05]
[1722024931997,5.4996,181.83,181.78,32.3037]
[1722024932598,60.19847011,181.85,181.79,18.5507]
[1722024932898,45.0,181.84,181.79,18.5507]
[1722024933895,45.0,181.84,181.8,13.05]
[1722024934190,45.0,181.84,181.81,13.05]
[1722024934398,8.62927011,181.85,181.82,13.05]
[1722024934576,8.62927011,181.85,181.83,13.05]
[1722024934894,8.62927011,181.85,181.83,18.5493]
[1722024935571,8.62927011,181.85,181.83,13.05]
[1722024935773,8.62927011,181.85,181.84,18.5493]
[1722024935993,33.02,181.9,181.86,5.4986]
[1722024936294,33.02,181.9,181.85,32.2963]
[1722024936295,41.64737613,181.9,181.85,32.2963]
[1722024937083,41.64737613,181.9,181.85,19.2463]
[1722024937290,41.64737613,181.9,181.86,5.4987]
[1722024937892,41.64737613,181.9,181.86,5.4986]
[1722024937893,8.62737613,181.9,181.86,5.4986]
[1722024938377,8.62737613,181.9,181.87,5.4983]
[1722024939072,8.62737613,181.9,181.85,13.7474]
[1722024939273,45.0,181.89,181.85,19.2461]
[1722024939790,45.0,181.89,181.86,5.4987]
[1722024940301,45.0,181.89,181.87,5.4983]
[1722024941400,45.0,181.89,181.85,19.2461]
[1722024941598,50.4978,181.89,181.85,13.7474]
[1722024941787,45.0,181.89,181.85,13.7474]
[1722024942389,45.0,181.89,181.86,5.4984]
[1722024942978,45.0,181.9,181.87,5.4982]
[1722024943179,45.0,181.91,181.87,5.4982]
[1722024943378,45.0,181.91,181.88,5.4981]
[1722024943599,45.0,181.92,181.89,5.4978]
[1722024943785,86.64552077,181.93,181.89,5.4978]
[1722024944186,92.14212077,181.93,181.89,5.4978]
[1722024944599,92.14212077,181.93,181.88,5.4981]
[1722024945587,86.64552077,181.93,181.89,5.4976]
[1722024946819,78.02,181.93,181.9,5.4972]
[1722024947603,45.0,181.93,181.89,5.4977]
[1722024948311,45.0,181.93,181.87,13.7454]
[1722024948490,50.4963,181.94,181.89,5.4976]
[1722024952617,5.4966,181.93,181.89,5.4976]
[1722024952829,45.0,181.92,181.89,5.4976]
[1722024953313,5.4963,181.94,181.89,5.4976]
[1722024953314,45.0,181.93,181.89,5.4976]
[1722024954620,5.497,181.92,181.87,13.7454]
[1722024954829,45.0,181.91,181.88,5.4978]
[1722024955011,45.0,181.91,181.89,5.4978]
[1722024955198,45.0,181.92,181.88,5.498]
[1722024955398,50.4969,181.92,181.87,13.7454]
[1722024955695,45.0,181.92,181.88,5.4978]
[1722024955897,45.0,181.92,181.89,5.4978]
[1722024956727,45.0,181.93,181.89,5.4978]
[1722024957118,50.4966,181.93,181.89,5.4978]
[1722024957607,45.0,181.93,181.89,5.4978]
[1722024957821,47.14129623,181.95,181.89,5.4978]
[1722024957822,50.4963,181.94,181.89,5.4978]
[1722024959132,50.4963,181.94,181.89,18.5778]
[1722024960346,45.0,181.94,181.9,5.4975]
[1722024960829,45.0,181.94,181.9,18.5775]
[1722024961432,50.4963,181.94,181.89,18.5777]
[1722024961931,45.0,181.94,181.9,18.5774]
[1722024963127,45.0,181.94,181.89,13.744]
[1722024963128,45.0,181.94,181.91,13.08]
[1722024963635,45.0,181.94,181.92,13.08]
[1722024963821,45.0,181.94,181.91,18.5772]
[1722024964725,45.0,181.94,181.91,13.08]
[1722024966338,45.0,181.94,181.92,13.08]
[1722024966919,45.0,181.94,181.91,13.08]
[1722024967935,8.62432333,181.99,181.93,13.08]
[1722024968136,33.02,182.02,181.97,18.5753]
[1722024968434,33.02,182.02,182.0,13.08]
[1722024969041,33.02,182.03,182.0,13.08]
[1722024969442,33.02,182.03,181.97,5.4951]
[1722024969443,46.1,182.03,181.97,5.4951]
[1722024969626,13.08,182.02,181.97,5.4951]
[1722024969820,5.4942,182.01,181.97,13.08]
[1722024970025,33.02,182.02,181.95,13.7399]
[1722024970325,91.1,182.01,181.95,26.8199]
[1722024970530,5.4948,181.99,181.95,26.8199]
[1722024970713,45.0,181.98,181.95,32.3158]
[1722024971841,45.0,181.99,181.95,32.3158]
[1722024972828,45.0,181.99,181.96,5.4956]
[1722024973138,45.0,182.0,181.96,5.4956]
[1722024975844,45.0,182.0,181.97,5.4953]
[1722024976243,58.08,182.0,181.97,5.4953]
[1722024977342,20.0,182.05,181.98,13.08]
[1722024977550,33.02,182.04,181.98,13.08]
[1722024977753,33.02,182.04,182.01,5.4941]
[1722024977953,33.02,182.04,182.0,19.2305]
[1722024978648,33.02,182.04,182.01,5.4941]
[1722024978947,46.1,182.05,182.01,5.4941]
[1722024979161,51.593,182.05,182.01,5.4941]
[1722024979328,51.593,182.05,182.0,19.2305]
[1722024979847,45.0,182.04,182.0,19.2305]
[1722024980045,50.4933,182.04,182.0,13.7361]
[1722024980351,18.5736,182.03,181.99,5.4947]
[1722024980533,45.0,182.02,181.99,5.4947]
[1722024981447,45.0,182.03,181.99,5.4947]